bitfinex-derivatives/quotes_BNBF0:USTF0_20250521
["timestamp","ask_amount","ask_price","bid_price","bid_amount"]
[1747840033560,1.50510587,659.82,659.22,1.599]
[1747840036157,1.50510587,659.73,659.22,1.599]
[1747840038560,1.50510587,659.72,659.22,1.599]
[1747840041459,1.50510587,659.87,659.22,1.599]
[1747840043762,1.50510587,659.91,659.22,1.599]
[1747840044462,1.50510587,659.91,659.15,1.079]
[1747840046359,1.50510587,659.99,659.15,1.079]
[1747840047263,1.50510587,659.99,659.16,1.368]
[1747840049065,1.50510587,660.07,659.16,1.368]
[1747840051568,1.50510587,660.06,659.16,1.368]
[1747840054371,1.50510587,660.24,659.16,1.368]
[1747840056172,1.50510587,660.24,659.17,1.737]
[1747840056870,1.50510587,660.15,659.17,1.737]
[1747840057274,1.50510587,660.15,659.18,1.047]
[1747840059272,1.50510587,660.11,659.18,1.047]
[1747840062276,1.50510587,660.12,659.18,1.047]
[1747840063269,1.50510587,660.12,659.19,0.56608363]
[1747840063471,1.50510587,660.12,659.2,0.56608363]
[1747840063676,1.50510587,660.12,659.21,0.56608363]
[1747840063876,1.50510587,660.12,659.22,0.56608363]
[1747840064076,1.50510587,660.12,659.23,0.56608363]
[1747840064270,1.50510587,660.12,659.24,0.56608363]
[1747840064473,1.50510587,660.12,659.25,0.56608363]
[1747840064673,1.50510587,660.12,659.18,1.047]
[1747840064974,1.50510587,660.16,659.19,0.56600325]
[1747840065174,1.50510587,660.16,659.2,0.56600325]
[1747840065374,1.50510587,660.16,659.21,0.56600325]
[1747840065574,1.50510587,660.16,659.22,0.56600325]
[1747840065873,1.50510587,660.16,659.23,0.56600325]
[1747840066169,1.50510587,660.16,659.24,0.56600325]
[1747840066371,1.50510587,660.16,659.25,0.56600325]
[1747840066571,1.50510587,660.16,659.26,0.56600325]
[1747840066773,1.50510587,660.16,659.27,0.56600325]
[1747840067079,1.50510587,660.16,659.18,1.047]
[1747840067377,1.50510587,660.16,659.19,0.56591887]
[1747840067576,1.50510587,660.16,659.2,0.56591887]
[1747840067771,1.50510587,660.16,659.21,0.56591887]
[1747840067971,1.50510587,660.16,659.22,0.56591887]
[1747840068176,1.50510587,660.16,659.23,0.56591887]
[1747840068477,1.50510587,660.16,659.24,0.5661108]
[1747840068678,1.50510587,660.16,659.25,0.5661108]
[1747840068876,1.50510587,660.16,659.26,0.5661108]
[1747840069077,1.50510587,660.16,659.18,1.047]
[1747840069376,1.50510587,660.16,659.19,0.56611627]
[1747840069576,1.50510587,660.16,659.18,1.047]
[1747840069577,1.50510587,660.16,659.2,0.56611627]
[1747840069777,1.50510587,660.05,659.21,0.56611627]
[1747840069979,1.50510587,660.05,659.22,0.56611627]
[1747840070280,1.50510587,660.05,659.23,0.56611627]
[1747840070578,1.50510587,660.05,659.24,0.56611627]
[1747840070879,1.50510587,660.05,659.18,1.047]
[1747840071178,1.50510587,660.05,659.19,0.56614967]
[1747840071373,1.50510587,660.05,659.2,0.56614967]
[1747840071580,1.50510587,660.05,659.18,1.047]
[1747840071881,1.50510587,659.97,659.18,1.047]
[1747840072281,1.50510587,659.97,659.19,0.56628412]
[1747840072476,1.50510587,659.97,659.2,0.56628412]
[1747840072780,1.50510587,659.97,659.21,0.5662477]
[1747840072974,1.50510587,659.97,659.22,0.5662477]
[1747840073181,1.50510587,659.97,659.23,0.5662477]
[1747840073378,1.50510587,659.97,659.24,0.5662477]
[1747840073682,1.50510587,659.97,659.25,0.5662477]
[1747840073877,1.50510587,659.97,659.26,0.5662477]
[1747840074076,1.50510587,660.09,659.18,1.047]
[1747840074278,1.50510587,660.09,659.19,0.56614068]
[1747840074477,1.50510587,660.09,659.2,0.56614068]
[1747840074677,1.50510587,660.09,659.21,0.56614068]
[1747840074881,1.50510587,660.09,659.22,0.56614068]
[1747840075180,1.50510587,660.09,659.23,0.56614068]
[1747840075379,1.50510587,660.09,659.24,0.56614068]
[1747840075579,1.50510587,660.09,659.25,0.56614068]
[1747840075780,1.50510587,660.09,659.17,1.737]
[1747840075980,1.50510587,660.05,659.18,0.5662631]
[1747840076175,1.50510587,660.05,659.19,0.5662631]
[1747840076377,1.50510587,660.05,659.2,0.5662631]
[1747840076577,1.50510587,660.05,659.21,0.5662631]
[1747840076777,1.50510587,660.05,659.22,0.5662631]
[1747840076976,1.50510587,660.05,659.23,0.56617644]
[1747840077180,1.50510587,660.05,659.24,0.56617644]
[1747840077479,1.50510587,660.05,659.25,0.56617644]
[1747840077680,1.50510587,660.05,659.26,0.56617644]
[1747840077980,1.50510587,660.05,659.27,0.56617644]
[1747840078180,1.50510587,660.05,659.17,1.737]
[1747840078181,1.50510587,660.05,659.28,0.56617644]
[1747840078383,1.50510587,660.05,659.29,0.56617644]
[1747840078582,1.50510587,660.05,659.3,0.56617644]
[1747840078782,1.50510587,660.05,659.31,0.56617644]
[1747840078983,1.50510587,660.12,659.32,0.56617644]
[1747840079181,1.50510587,660.12,659.33,0.56617644]
[1747840079381,1.50510587,660.12,659.17,1.737]
[1747840079682,1.50510587,660.12,659.18,0.56602805]
[1747840079882,1.50510587,660.12,659.19,0.56602805]
[1747840081088,1.50510587,660.12,659.2,0.56602997]
[1747840081384,1.50510587,660.14,659.21,0.56602997]
[1747840081684,1.50510587,660.14,659.22,0.56602997]
[1747840081884,1.50510587,660.14,659.23,0.56602997]
[1747840082086,1.50510587,660.14,659.24,0.56602997]
[1747840082288,1.50510587,660.14,659.25,0.56602997]
[1747840082487,1.50510587,660.14,659.26,0.56602997]
[1747840082782,1.50510587,660.14,659.27,2.35888784]
[1747840082986,1.50510587,660.14,659.28,0.56588784]
[1747840083186,1.50510587,660.14,659.29,0.56588784]
[1747840083380,1.50510587,660.14,659.3,0.56588784]
[1747840083583,1.50510587,660.14,659.31,0.56588784]
[1747840083781,1.50510587,660.14,659.32,0.56588784]
[1747840083985,1.50510587,660.14,659.33,0.56588784]
[1747840084185,1.50510587,660.14,659.34,0.56588784]
[1747840084382,1.50510587,660.14,659.35,0.56588784]
[1747840084690,1.50510587,660.14,659.36,0.56516239]
[1747840084881,1.50510587,660.45,659.37,0.56516239]
[1747840085083,1.50510587,660.45,659.38,0.56516239]
[1747840085284,1.50510587,660.45,659.39,0.56516239]
[1747840085482,1.50510587,660.45,659.4,0.56516239]
[1747840085682,1.50510587,660.45,659.41,0.56516239]
[1747840085881,1.50510587,660.45,659.42,0.56516239]
[1747840086086,1.50510587,660.45,659.43,0.56516239]
[1747840086288,1.50510587,660.45,659.44,0.56516239]
[1747840086482,1.50510587,660.45,659.45,0.56516239]
[1747840086683,1.50510587,660.45,659.46,0.56516239]
[1747840086888,1.50510587,660.45,659.27,1.793]
[1747840087088,1.50510587,660.47,659.28,0.56516812]
[1747840087287,1.50510587,660.47,659.29,0.56516812]
[1747840087487,1.50510587,660.47,659.3,0.56516812]
[1747840087686,1.50510587,660.47,659.31,0.56516812]
[1747840087884,1.50510587,660.47,659.32,0.56516812]
[1747840088080,1.50510587,660.47,659.33,0.56516812]
[1747840088287,1.50510587,660.47,659.34,0.56516812]
[1747840088487,1.50510587,660.47,659.35,0.56516812]
[1747840088787,1.50510587,660.47,659.36,0.56516812]
[1747840088988,1.50510587,660.47,659.37,0.56516812]
[1747840089188,1.50510587,660.47,659.38,0.56522115]
[1747840089391,1.50510587,660.47,659.39,0.56515703]
[1747840089592,1.50510587,660.33,659.27,1.793]
[1747840089892,1.50510587,660.33,659.28,0.5652896]
[1747840090088,1.50510587,660.33,659.29,0.56534452]
[1747840090290,1.50510587,660.33,659.3,0.56534452]
[1747840090489,1.50510587,660.33,659.31,0.56534452]
[1747840090690,1.50510587,660.33,659.32,0.56534452]
[1747840090890,1.50510587,660.33,659.33,0.56534452]
[1747840091186,1.50510587,660.33,659.34,0.56534452]
[1747840091392,1.50510587,660.33,659.35,0.56534452]
[1747840091590,1.50510587,660.31,659.36,0.56534452]
[1747840091887,1.50510587,660.31,659.37,0.56512236]
[1747840092087,1.50510587,660.31,659.27,1.793]
[1747840092292,1.50510587,660.31,659.28,0.56513139]
[1747840092492,1.50510587,660.31,659.29,0.56513139]
[1747840092690,1.50510587,660.31,659.3,0.56513139]
[1747840092888,1.50510587,660.31,659.31,0.56513139]
[1747840093085,1.50510587,660.31,659.32,0.56513139]
[1747840093288,1.50510587,660.31,659.27,1.793]
[1747840093289,1.50510587,660.31,659.33,0.56513139]
[1747840093490,1.50510587,660.31,659.34,0.56513139]
[1747840093693,1.50510587,660.31,659.35,0.56513139]
[1747840093994,1.50510587,660.31,659.36,0.56513139]
[1747840094194,1.50510587,660.31,659.37,0.56513139]
[1747840094492,1.50510587,660.31,659.38,0.56513139]
[1747840094694,1.50510587,660.31,659.27,1.793]
[1747840094991,1.50510587,660.31,659.28,0.56527205]
[1747840095188,1.50510587,660.31,659.29,0.56527205]
[1747840095394,1.50510587,660.31,659.3,0.56527205]
[1747840095693,1.50510587,660.31,659.31,0.56527205]
[1747840095893,1.50510587,660.31,659.32,0.56527205]
[1747840096089,1.50510587,660.31,659.33,0.56527205]
[1747840096293,1.50510587,660.31,659.34,0.56527205]
[1747840096493,1.50510587,660.31,659.35,0.56527205]
[1747840096695,1.50510587,660.31,659.36,0.56527205]
[1747840096894,1.50510587,660.31,659.37,0.56527205]
[1747840097094,1.50510587,660.36,659.38,0.56527205]
[1747840097396,1.50510587,660.36,659.39,0.56546223]
[1747840097694,1.50510587,660.36,659.4,0.56546223]
[1747840097895,1.50510587,660.36,659.41,0.56546465]
[1747840098095,1.50510587,660.36,659.42,0.56546465]
[1747840098294,1.50510587,660.36,659.43,0.56546465]
[1747840098495,1.50510587,660.36,659.44,0.56546465]
[1747840098697,1.50510587,660.36,659.45,0.56546465]
[1747840098890,1.50510587,660.36,659.46,0.56546465]
[1747840099095,1.50510587,660.36,659.47,0.56546465]
[1747840099294,1.50510587,660.36,659.48,0.56546465]
[1747840099495,1.50510587,660.36,659.49,0.56568289]
[1747840099695,1.50510587,660.36,659.27,1.793]
[1747840099889,1.50510587,660.37,659.28,0.56568847]
[1747840100094,1.50510587,660.37,659.29,0.56568847]
[1747840100293,1.50510587,660.37,659.3,0.56568847]
[1747840100492,1.50510587,660.37,659.31,0.56568847]
[1747840100795,1.50510587,660.37,659.32,0.56568847]
[1747840100997,1.50510587,660.37,659.33,0.56568847]
[1747840101196,1.50510587,660.37,659.34,0.56568847]
[1747840101397,1.50510587,660.37,659.27,1.793]
[1747840101398,1.50510587,660.37,659.35,0.56568847]
[1747840101598,1.50510587,660.37,659.36,0.56568847]
[1747840101797,1.50510587,660.37,659.37,0.56568847]
[1747840101997,1.50510587,660.37,659.38,0.56568847]
[1747840102200,1.50510587,660.46,659.39,0.56568847]
[1747840102400,1.50510587,660.46,659.4,0.56568847]
[1747840102598,1.50510587,660.46,659.41,0.56568847]
[1747840102801,1.50510587,660.46,659.42,0.56568847]
[1747840103000,1.50510587,660.46,659.43,0.56568847]
[1747840103199,1.50510587,660.46,659.44,0.56568847]
[1747840103401,1.50510587,660.46,659.45,0.56568847]
[1747840103600,1.50510587,660.46,659.46,0.56568847]
[1747840103800,1.50510587,660.46,659.47,0.56568847]
[1747840104001,1.50510587,660.46,659.48,0.56568847]
[1747840104301,1.50510587,660.39,659.27,1.793]
[1747840104495,1.50510587,660.39,659.28,0.5655865]
[1747840104700,1.50510587,660.39,659.29,0.5655865]
[1747840104999,1.50510587,660.39,659.3,0.5655865]
[1747840105195,1.50510587,660.39,659.31,0.5655865]
[1747840105394,1.50510587,660.39,659.32,0.5655865]
[1747840105603,1.50510587,660.39,659.33,0.5655865]
[1747840105802,1.50510587,660.39,659.34,0.5655865]
[1747840106100,1.50510587,660.39,659.35,0.5655865]
[1747840106302,1.50510587,660.39,659.36,0.5655865]
[1747840106495,1.50510587,660.32,659.37,0.5655865]
[1747840106701,1.50510587,660.32,659.38,0.5655865]
[1747840107004,1.50510587,660.32,659.2,0.1666961]
[1747840107005,1.50510587,660.32,659.39,0.5655865]
[1747840107203,1.50510587,660.32,659.4,0.5655865]
[1747840108206,1.50510587,660.32,659.41,0.56542413]
[1747840108406,1.50510587,660.32,659.42,0.56542413]
[1747840108605,1.50510587,660.47,659.43,0.56542413]
[1747840108806,1.50510587,660.47,659.44,0.56542413]
[1747840109101,1.50510587,660.47,659.45,0.56542413]
[1747840109309,1.50510587,660.47,659.46,0.56542413]
[1747840109505,1.50510587,660.47,659.47,0.56542413]
[1747840109710,1.50510587,660.47,659.48,0.56542413]
[1747840110005,1.50510587,660.47,659.49,0.56542413]
[1747840110206,1.50510587,660.47,659.5,0.56540121]
[1747840110405,1.50510587,660.47,659.51,0.56540121]
[1747840110606,1.50510587,660.47,659.52,0.56540121]
[1747840110902,1.50510587,660.47,659.53,0.56540121]
[1747840111107,1.50510587,660.47,659.54,0.56540121]
[1747840111411,1.50510587,660.4,659.55,0.56540121]
[1747840111608,1.50510587,660.4,659.56,0.56540121]
[1747840111908,1.50510587,660.4,659.57,0.56540121]
[1747840112103,1.50510587,660.4,659.58,0.56540121]
[1747840112304,1.50510587,660.4,659.59,0.56540121]
[1747840112504,1.50510587,660.4,659.48,1.522]
[1747840112707,1.50510587,660.4,659.49,0.56547739]
[1747840112908,1.50510587,660.4,659.5,0.56547739]
[1747840113105,1.50510587,660.4,659.51,0.56547739]
[1747840113309,1.50510587,660.4,659.52,0.56547739]
[1747840113610,1.50510587,660.4,659.53,0.56547739]
[1747840113810,1.50510587,660.4,659.48,1.522]
[1747840113811,1.50510587,660.4,659.54,0.56555898]
[1747840114011,1.50510587,660.4,659.55,0.56555898]
[1747840114212,1.50510587,660.4,659.56,0.56555898]
[1747840114408,1.50510587,660.4,659.48,1.522]
[1747840114612,1.50510587,660.4,659.49,0.56572354]
[1747840114813,1.50510587,660.4,659.5,0.56572354]
[1747840115012,1.50510587,660.4,659.51,0.56572354]
[1747840115312,1.50510587,660.42,659.52,0.56572354]
[1747840115509,1.50510587,660.42,659.48,1.522]
[1747840115713,1.50510587,660.42,659.49,0.56577807]
[1747840115910,1.50510587,660.42,659.5,0.56577807]
[1747840116115,1.50510587,660.42,659.51,0.56577807]
[1747840116316,1.50510587,660.42,659.52,0.56577807]
[1747840116516,1.50510587,660.42,659.53,0.56577807]
[1747840116710,1.50510587,660.42,659.54,0.56577807]
[1747840116913,1.50510587,660.42,659.55,0.56577807]
[1747840117117,1.50510587,660.42,659.56,0.56577807]
[1747840117315,1.50510587,660.42,659.57,0.56577807]
[1747840117513,1.50510587,660.42,659.48,1.522]
[1747840117714,1.50510587,660.42,659.49,0.56586499]
[1747840117916,1.50510587,660.36,659.5,0.56586499]
[1747840118116,1.50510587,660.36,659.51,0.56586499]
[1747840118319,1.50510587,660.36,659.52,0.56586499]
[1747840118523,1.50510587,660.36,659.53,0.56586499]
[1747840118720,1.50510587,660.36,659.54,0.56586499]
[1747840118920,1.50510587,660.36,659.55,0.56586499]
[1747840119116,1.50510587,660.36,659.56,0.56586499]
[1747840119317,1.50510587,660.36,659.57,0.56604993]
[1747840119618,1.50510587,660.36,659.58,0.56604993]
[1747840119817,1.50510587,660.36,659.59,0.56604993]
[1747840120112,1.50510587,660.36,659.48,1.522]
[1747840120113,1.50510587,660.36,659.6,0.56604993]
[1747840120318,1.50510587,660.43,659.61,0.56604993]
[1747840120514,1.50510587,660.43,659.48,1.522]
[1747840120813,1.50510587,660.43,659.49,0.56613965]
[1747840121115,1.50510587,660.43,659.5,0.56613965]
[1747840121314,1.50510587,660.43,659.51,0.56613965]
[1747840121516,1.50510587,660.43,659.52,0.56613965]
[1747840121715,1.50510587,660.43,659.53,0.56613965]
[1747840121915,1.50510587,660.43,659.54,0.56613965]
[1747840122118,1.50510587,660.43,659.55,0.56613965]
[1747840122319,1.50510587,660.43,659.56,0.56613965]
[1747840122514,1.50510587,660.43,659.57,0.56613965]
[1747840122715,1.50510587,660.43,659.58,0.56613965]
[1747840122919,1.50510587,660.3,659.59,0.56624311]
[1747840123121,1.50510587,660.3,659.6,0.56624311]
[1747840123321,1.50510587,660.3,659.61,0.56624311]
[1747840123517,1.50510587,660.3,659.62,0.56624311]
[1747840123724,1.50510587,660.3,659.63,0.56624311]
[1747840123923,1.50510587,660.3,659.48,1.522]
[1747840124223,1.50510587,660.3,659.49,0.56632907]
[1747840124424,1.50510587,660.3,659.5,0.56632907]
[1747840124615,1.50510587,660.3,659.51,0.56632907]
[1747840124817,1.50510587,660.3,659.52,0.56636782]
[1747840125020,1.50510587,660.3,659.53,0.56636782]
[1747840125219,1.50510587,660.4,659.54,0.56636782]
[1747840125421,1.50510587,660.4,659.55,0.56636782]
[1747840125719,1.50510587,660.4,659.56,0.56636782]
[1747840125921,1.50510587,660.4,659.57,0.56636782]
[1747840126118,1.50510587,660.4,659.58,0.56636782]
[1747840126322,1.50510587,660.4,659.59,0.56636782]
[1747840126520,1.50510587,660.4,659.6,0.56636782]
[1747840126725,1.50510587,660.4,659.61,0.56636782]
[1747840127024,1.50510587,660.4,659.48,1.522]
[1747840127226,1.50510587,660.4,659.49,0.56647587]
[1747840127424,1.50510587,660.4,659.5,0.56647587]
[1747840127624,1.50510587,660.4,659.51,0.56647587]
[1747840127828,1.50510587,660.4,659.52,0.56647587]
[1747840128024,1.50510587,660.4,659.53,0.56647587]
[1747840128223,1.50510587,660.35,659.54,0.56647587]
[1747840128424,1.50510587,660.35,659.55,0.56660159]
[1747840128625,1.50510587,660.35,659.56,0.56660159]
[1747840128828,1.50510587,660.35,659.57,0.56660159]
[1747840129029,1.50510587,660.35,659.58,0.56660159]
[1747840129230,1.50510587,660.35,659.59,0.56660159]
[1747840129423,1.50510587,660.35,659.6,0.56660159]
[1747840129627,1.50510587,660.35,659.48,1.522]
[1747840129826,1.50510587,660.35,659.49,0.56670116]
[1747840130031,1.50510587,660.35,659.5,0.56670116]
[1747840130231,1.50510587,660.35,659.51,0.56670116]
[1747840130425,1.50510587,660.35,659.52,0.56670116]
[1747840130629,1.50510587,660.47,659.53,0.56670116]
[1747840130828,1.50510587,660.47,659.54,0.56670116]
[1747840131033,1.50510587,660.47,659.55,0.56670116]
[1747840131229,1.50510587,660.47,659.56,0.56670116]
[1747840131431,1.50510587,660.47,659.57,0.56670116]
[1747840131630,1.50510587,660.47,659.58,0.56670116]
[1747840131830,1.50510587,660.47,659.59,0.56670116]
[1747840132029,1.50510587,660.47,659.48,1.522]
[1747840132231,1.50510587,660.47,659.49,0.56705755]
[1747840132433,1.50510587,660.47,659.5,0.56705755]
[1747840132634,1.50510587,660.47,659.51,0.56705755]
[1747840132834,1.50510587,660.47,659.52,0.56720403]
[1747840133133,1.50510587,660.24,659.53,0.56720403]
[1747840133431,1.50510587,660.24,659.54,0.56720403]
[1747840133635,1.50510587,660.24,659.55,0.56726979]
[1747840133832,1.50510587,660.24,659.43,1.043]
[1747840134132,1.50510587,660.24,659.44,0.56727676]
[1747840134340,1.50510587,660.24,659.45,0.56727676]
[1747840134634,1.50510587,660.24,659.46,0.56727676]
[1747840134829,1.50510587,660.24,659.47,0.56727676]
[1747840135030,1.50510587,660.24,659.48,0.56727676]
[1747840135233,1.50510587,660.24,659.49,0.56727676]
[1747840135431,1.50510587,660.24,659.5,0.56727676]
[1747840135629,1.50510587,660.2,659.51,0.56727676]
[1747840135829,1.50510587,660.2,659.52,0.5675908]
[1747840136033,1.50510587,660.2,659.43,1.043]
[1747840136240,1.50510587,660.2,659.44,0.5675943]
[1747840136433,1.50510587,660.2,659.45,0.5675943]
[1747840136734,1.50510587,660.2,659.46,1.9025943]
[1747840136934,1.50510587,660.2,659.47,0.5675943]
[1747840137632,1.50510587,660.2,659.48,0.5675943]
[1747840137834,1.50510587,660.2,659.49,0.5675943]
[1747840138033,1.50510587,660.2,659.5,0.5675943]
[1747840138237,1.50510587,660.2,659.51,0.5675943]
[1747840138433,1.50510587,660.2,659.52,0.5675943]
[1747840138634,1.50510587,660.2,659.53,0.5675943]
[1747840138832,1.50510587,660.2,659.54,0.5675943]
[1747840139034,1.50510587,660.2,659.55,0.5675943]
[1747840139235,1.50510587,660.2,659.56,0.5675943]
[1747840139435,1.50510587,660.13,659.57,0.5675943]
[1747840139635,1.50510587,660.13,659.58,0.5675943]
[1747840139832,1.50510587,660.13,659.59,0.5675943]
[1747840140036,1.50510587,660.13,659.6,0.5675943]
[1747840140239,1.50510587,660.13,659.61,0.5675943]
[1747840140438,1.50510587,660.13,659.62,0.5675943]
[1747840140737,1.50510587,660.13,659.63,0.5675943]
[1747840140934,1.50510587,660.13,659.64,0.5675943]
[1747840141135,1.50510587,660.13,659.65,0.5675943]
[1747840141335,1.50510587,660.13,659.66,0.5675943]
[1747840141534,1.50510587,660.13,659.67,0.5675943]
[1747840141738,1.50510587,660.13,659.68,0.5675943]
[1747840141940,1.50510587,660.13,659.69,0.5675943]
[1747840142239,1.50510587,660.13,659.46,1.335]
[1747840142542,1.50510587,660.13,659.47,0.5674722]
[1747840142736,1.50510587,660.21,659.48,0.5674722]
[1747840142941,1.50510587,660.21,659.49,0.5674722]
[1747840143139,1.50510587,660.21,659.5,0.5674722]
[1747840143340,1.50510587,660.21,659.51,0.5674722]
[1747840143542,1.50510587,660.21,659.52,0.5674722]
[1747840143742,1.50510587,660.21,659.46,1.5016961]
[1747840143743,1.50510587,660.21,659.53,0.5674722]
[1747840143942,1.50510587,660.21,659.54,0.5674722]
[1747840144136,1.50510587,660.21,659.55,0.5674722]
[1747840144339,1.50510587,660.21,659.56,0.5674722]
[1747840144540,1.50510587,660.21,659.57,0.5674722]
[1747840144740,1.50510587,660.21,659.58,0.5674722]
[1747840145039,1.50510587,660.21,659.59,0.5674722]
[1747840145243,1.50510587,660.21,659.6,0.5674722]
[1747840145442,1.50510587,660.21,659.61,0.5674722]
[1747840145640,1.50510587,660.21,659.62,0.5674722]
[1747840145842,1.50510587,660.21,659.63,0.5674722]
[1747840146041,1.50510587,660.21,659.64,0.5674722]
[1747840146237,1.50510587,660.21,659.65,0.56760984]
[1747840146441,1.50510587,660.21,659.46,1.335]
[1747840146741,1.50510587,660.21,659.47,0.56772027]
[1747840146941,1.50510587,660.21,659.48,0.56772027]
[1747840147240,1.50510587,660.21,659.49,0.56772027]
[1747840147437,1.50510587,660.21,659.5,0.56772027]
[1747840147637,1.50510587,660.21,659.51,0.56772027]
[1747840147843,0.26372327,660.72,659.52,0.56772027]
[1747840147844,1.50510587,660.32,659.52,0.56772027]
[1747840148046,1.50510587,660.32,659.53,0.56755492]
[1747840148342,1.50510587,660.32,659.54,0.56755492]
[1747840148538,1.50510587,660.32,659.55,0.56755492]
[1747840148738,1.50510587,660.32,659.56,0.56755492]
[1747840148941,1.50510587,660.32,659.57,0.56755492]
[1747840149140,1.50510587,660.32,659.58,0.56755492]
[1747840149346,1.50510587,660.32,659.59,0.56755492]
[1747840149649,1.50510587,660.32,659.6,0.56761054]
[1747840149846,1.50510587,660.32,659.61,0.56761054]
[1747840150047,1.50510587,660.32,659.62,0.56761054]
[1747840150244,1.50510587,660.32,659.63,0.56761054]
[1747840150550,1.50510587,660.31,659.64,0.56761054]
[1747840150747,1.50510587,660.31,659.65,0.56761054]
[1747840150948,1.50510587,660.31,659.66,0.56761054]
[1747840151242,1.50510587,660.31,659.67,0.56761054]
[1747840151446,1.50510587,660.31,659.55,1.165]
[1747840151750,1.50510587,660.31,659.56,0.5678694]
[1747840151943,1.50510587,660.31,659.57,0.5678694]
[1747840152147,1.50510587,660.31,659.58,0.5678694]
[1747840152346,1.50510587,660.31,659.59,0.5678694]
[1747840152547,1.50510587,660.31,659.6,0.5678694]
[1747840152750,1.50510587,660.31,659.55,1.165]
[1747840152751,1.50510587,660.31,659.61,0.5678694]
[1747840152950,1.50510587,660.38,659.62,0.5678694]
[1747840153145,1.50510587,660.38,659.63,0.5678694]
[1747840153350,1.50510587,660.38,659.64,0.5678694]
[1747840153545,1.50510587,660.38,659.65,0.56793361]
[1747840153747,1.50510587,660.38,659.66,0.56793361]
[1747840153948,1.50510587,660.38,659.67,0.56793361]
[1747840154150,1.50510587,660.38,659.55,1.165]
[1747840154450,1.50510587,660.38,659.56,0.56699904]
[1747840154650,1.50510587,660.38,659.57,0.56699904]
[1747840154853,1.50510587,660.38,659.58,0.56699904]
[1747840155050,1.50510587,660.38,659.59,0.56699904]
[1747840155352,1.50510587,660.35,659.6,0.56699904]
[1747840155549,1.50510587,660.35,659.61,0.56699904]
[1747840155751,1.50510587,660.35,659.62,0.56699904]
[1747840155951,1.50510587,660.35,659.56,1.007]
[1747840156147,1.50510587,660.35,659.57,0.56733229]
[1747840156350,1.50510587,660.35,659.58,0.56733229]
[1747840156549,1.50510587,660.35,659.59,0.56733229]
[1747840156751,1.50510587,660.35,659.56,1.007]
[1747840156950,1.50510587,660.07,659.56,1.007]
[1747840159359,1.13293758,659.71,659.56,1.007]
[1747840162563,1.13293758,659.9,659.56,1.007]
[1747840164860,1.13293758,659.88,659.56,1.007]
[1747840168467,1.13293758,659.9,659.56,1.007]
[1747840171876,1.13293758,659.8,659.56,1.007]
[1747840174277,1.13293758,659.93,659.56,1.007]
[1747840176776,1.13293758,659.89,659.56,1.007]
[1747840176977,1.13293758,659.89,659.55,1.165]
[1747840179577,1.13293758,659.69,659.55,1.165]
[1747840182273,1.13293758,659.87,659.55,1.165]
[1747840185673,1.50510587,660.06,659.55,1.165]
[1747840185674,1.13293758,659.88,659.55,1.165]
[1747840189080,1.13293758,659.81,659.55,1.165]
[1747840189780,1.13293758,659.81,659.26,1.315]
[1747840190281,1.13293758,659.81,659.27,0.56482639]
[1747840190482,1.13293758,659.81,659.28,0.56482639]
[1747840190780,1.13293758,659.81,659.29,0.56482639]
[1747840190980,1.13293758,659.81,659.3,0.56482639]
[1747840191173,1.13293758,659.81,659.31,0.56482639]
[1747840191378,1.13293758,659.81,659.32,0.56482639]
[1747840191680,1.13293758,660.14,659.26,1.315]
[1747840191876,1.13293758,660.14,659.27,0.5646387]
[1747840192077,1.13293758,660.14,659.28,0.5646387]
[1747840192274,1.13293758,660.14,659.29,0.5646387]
[1747840192578,1.13293758,660.14,659.3,0.5646387]
[1747840192779,1.13293758,660.14,659.31,0.5646387]
[1747840192979,1.13293758,660.14,659.28,1.215]
[1747840193181,1.13293758,660.14,659.29,0.56463451]
[1747840193381,1.13293758,660.14,659.3,0.56463451]
[1747840193578,1.13293758,660.14,659.28,1.215]
[1747840193778,1.13293758,660.1,659.29,0.5646536]
[1747840193983,1.13293758,660.1,659.3,0.5646536]
[1747840194180,1.13293758,660.1,659.31,0.5646536]
[1747840194378,1.13293758,660.1,659.32,0.5646086]
[1747840194581,1.13293758,660.1,659.28,1.215]
[1747840194781,1.13293758,660.1,659.29,0.56461266]
[1747840195082,1.13293758,660.1,659.3,0.56461266]
[1747840195382,1.13293758,660.1,659.28,1.215]
[1747840196283,1.13293758,659.98,659.28,1.215]
[1747840198887,1.13293758,659.76,659.28,1.215]
[1747840202891,1.13293758,659.78,659.28,1.215]
[1747840204093,1.13293758,659.78,659.29,0.56545688]
[1747840204292,1.13293758,659.78,659.3,0.56545688]
[1747840204493,1.13293758,659.78,659.31,0.56545688]
[1747840204694,1.13293758,659.78,659.32,0.56545688]
[1747840204893,1.13293758,659.78,659.33,0.56545688]
[1747840205092,1.13293758,659.78,659.28,1.215]
[1747840205294,1.13293758,659.78,659.29,0.56551179]
[1747840205590,1.13293758,659.78,659.3,0.56551179]
[1747840205789,1.13293758,659.99,659.31,0.56551179]
[1747840205995,1.13293758,659.99,659.28,1.215]
[1747840205996,1.13293758,659.99,659.32,0.56551179]